fUSD/lending_fUSD_20240630
["ID","MTS","AMOUNT","RATE_DAILY","PERIOD"]
[330702931,1719715898217,-179.85213788,0.00017799,2]
[330702932,1719715898227,-1000.0,0.00017808,2]
[330702933,1719715898237,-1000.0,0.00017808,2]
[330702934,1719715898246,-1000.0,0.00017808,2]
[330702935,1719715898255,-1000.0,0.00017808,2]
[330702936,1719715898264,-1000.0,0.00017808,2]
[330702937,1719715898274,-1000.0,0.00017808,2]
[330702938,1719715898283,-1000.0,0.00017808,2]
[330702939,1719715898292,-1000.0,0.00017808,2]
[330702940,1719715898302,-1000.0,0.00017808,2]
[330702941,1719715898311,-1000.0,0.00017808,2]
[330702942,1719715898321,-1019.0,0.00017808,2]
[330702943,1719715898330,-1000.0,0.00017808,2]
[330702944,1719715898339,-1000.0,0.00017808,2]
[330702945,1719715898350,-1000.0,0.00017808,2]
[330702946,1719715898360,-1000.0,0.00017808,2]
[330702947,1719715898369,-1000.0,0.00017808,2]
[330702948,1719715898379,-1000.0,0.00017808,2]
[330702949,1719715898388,-1000.0,0.00017808,2]
[330702950,1719715898398,-1000.0,0.00017808,2]
[330702951,1719715898408,-1000.0,0.00017808,2]
[330702952,1719715898417,-1000.0,0.00017808,2]
[330702953,1719715898427,-1000.0,0.00017808,2]
[330702954,1719715898436,-1000.0,0.00017808,2]
[330702955,1719715898446,-1000.0,0.00017808,2]
[330702956,1719715898455,-1000.0,0.00017808,2]
[330702957,1719715898465,-1000.0,0.00017808,2]
[330702958,1719715898474,-1000.0,0.00017808,2]
[330702959,1719715898484,-1000.0,0.00017808,2]
[330702960,1719715898493,-1000.0,0.00017808,2]
[330702961,1719715898503,-1000.0,0.00017808,2]
[330702962,1719715898512,-1000.0,0.00017808,2]
[330702963,1719715898521,-1000.0,0.00017808,2]
[330702964,1719715898531,-1000.0,0.00017808,2]
[330702965,1719715898540,-1000.0,0.00017808,2]
[330702966,1719715898551,-1000.0,0.00017808,2]
[330702967,1719715898561,-1000.0,0.00017808,2]
[330702968,1719715898571,-1000.0,0.00017808,2]
[330702969,1719715898580,-1000.0,0.00017808,2]
[330702970,1719715898590,-1000.0,0.00017808,2]
[330702971,1719715898601,-1000.0,0.00017808,2]
[330702972,1719715898610,-1000.0,0.00017808,2]
[330702973,1719715898620,-1000.0,0.00017808,2]
[330702974,1719715898630,-1000.0,0.00017808,2]
[330702975,1719715898640,-1000.0,0.00017808,2]
[330702976,1719715898650,-1000.0,0.00017808,2]
[330702977,1719715898660,-1000.0,0.00017808,2]
[330702978,1719715898669,-1000.0,0.00017808,2]
[330702979,1719715898679,-1000.0,0.00017808,2]
[330702980,1719715898688,-1000.0,0.00017808,2]
[330702981,1719715898698,-1000.0,0.00017808,2]
[330702982,1719715898708,-1000.0,0.00017808,2]
[330702983,1719715898718,-1000.0,0.00017808,2]
[330702984,1719715898728,-1000.0,0.00017808,2]
[330702985,1719715898737,-1000.0,0.00017808,2]
[330702986,1719715898748,-1000.0,0.00017808,2]
[330702987,1719715898757,-1000.0,0.00017808,2]
[330702988,1719715898767,-1000.0,0.00017808,2]
[330702989,1719715898778,-1000.0,0.00017808,2]
[330702990,1719715898789,-1000.0,0.00017808,2]
[330702991,1719715898799,-1000.0,0.00017808,2]
[330702992,1719715898809,-1000.0,0.00017808,2]
[330702993,1719715898819,-1000.0,0.00017808,2]
[330702994,1719715898831,-1000.0,0.00017808,2]
[330702995,1719715898840,-1000.0,0.00017808,2]
[330702996,1719715898852,-1000.0,0.00017808,2]
[330702997,1719715898862,-1000.0,0.00017808,2]
[330702998,1719715898872,-1000.0,0.00017808,2]
[330702999,1719715898883,-1000.0,0.00017808,2]
[330703000,1719715898893,-1000.0,0.00017808,2]
[330703001,1719715898903,-1000.0,0.00017808,2]
[330703002,1719715898914,-1000.0,0.00017808,2]
[330703003,1719715898924,-1000.0,0.00017808,2]
[330703004,1719715898936,-1000.0,0.00017808,2]
[330703005,1719715898946,-1000.0,0.00017808,2]
[330703006,1719715898955,-397.0,0.00017808,2]
[330703007,1719715898965,-152.0,0.00017814,4]
[330703008,1719715898975,-450.0,0.0001784,2]
[330703009,1719715898984,-1613.0,0.0001791,2]
[330703010,1719715898994,-167.0,0.00017921,2]
[330703011,1719715899004,-1012.1875412,0.00017923,2]
[330703012,1719715899014,-221.0,0.0001793,2]
[330703013,1719715899024,-204.0,0.0001793,2]
[330703014,1719715899034,-327.0,0.0001793,2]
[330703015,1719715899045,-5604.08620179,0.00017954,2]
[330703016,1719715899062,-940.0,0.00018,2]
[330703017,1719715899072,-155.0,0.00018,2]
[330703018,1719715899082,-6759.2256552,0.00018,3]
[330703019,1719715899096,-370.27430286,0.00018,2]
[330703020,1719715899108,-200.0,0.00018,2]
[330703021,1719715899118,-200.0,0.00018,2]
[330703022,1719715899131,-235.11235371,0.00018,2]
[330703023,1719715899142,-235.11235371,0.00018,2]
[330703024,1719715899153,-235.11235371,0.00018,2]
[330703025,1719715899163,-235.11235371,0.00018,2]
[330703026,1719715899174,-235.11235371,0.00018,2]
[330703027,1719715899185,-235.11235371,0.00018,2]
[330703028,1719715899195,-235.11235371,0.00018,2]
[330703029,1719715899206,-235.11235371,0.00018,2]
[330703030,1719715899216,-235.11235371,0.00018,2]
[330703031,1719715899227,-235.11235371,0.00018,2]
[330703032,1719715899237,-235.11235371,0.00018,2]
[330703033,1719715899248,-235.11235371,0.00018,2]
[330703034,1719715899259,-235.11235371,0.00018,2]
[330703035,1719715899269,-235.11235371,0.00018,2]
[330703036,1719715899279,-235.11235371,0.00018,2]
[330703037,1719715899290,-235.11235371,0.00018,2]
[330703038,1719715899301,-235.11235371,0.00018,2]
[330703039,1719715899311,-235.11235371,0.00018,2]
[330703040,1719715899321,-235.11235371,0.00018,2]
[330703041,1719715899333,-235.11235371,0.00018,2]
[330703042,1719715899343,-235.11235371,0.00018,2]
[330703043,1719715899355,-235.11235371,0.00018,2]
[330703044,1719715899365,-235.11235371,0.00018,2]
[330703045,1719715899376,-235.11235371,0.00018,2]
[330703046,1719715899386,-235.11235371,0.00018,2]
[330703047,1719715899396,-235.11235371,0.00018,2]
[330703048,1719715899407,-235.11235371,0.00018,2]
[330703049,1719715899417,-235.11235371,0.00018,2]
[330703050,1719715899428,-235.11235371,0.00018,2]
[330703051,1719715899438,-235.11235371,0.00018,2]
[330703052,1719715899448,-235.11235371,0.00018,2]
[330703053,1719715899459,-235.11235371,0.00018,2]
[330703054,1719715899469,-235.11235371,0.00018,2]
[330703055,1719715899479,-235.11235371,0.00018,2]
[330703056,1719715899490,-235.11235371,0.00018,2]
[330703057,1719715899500,-13555.21091272,0.00018055,2]
[330703058,1719715899510,-25072.10870496,0.00018061,2]
[330703059,1719715899520,-152.0,0.00018104,5]
[330703060,1719715899529,-221.0,0.0001837,2]
[330703061,1719715899539,-204.0,0.0001837,2]
[330703062,1719715899550,-327.0,0.0001837,2]
[330703063,1719715899560,-152.0,0.00018393,6]
[330703064,1719715899570,-150.0,0.00018394,2]
[330703065,1719715899580,-167.0,0.00018444,2]
[330703066,1719715899591,-166.88,0.00018444,2]
[330703067,1719715899602,-175.85506031,0.00018462,2]
[330703068,1719715899612,-150.0,0.00018563,2]
[330703069,1719715899623,-150.0,0.00018624,2]
[330703070,1719715899633,-150.0,0.00018627,2]
[330703071,1719715899644,-500.0,0.0001863,2]
[330703072,1719715899654,-152.0,0.00018683,7]
[330703073,1719715899664,-5604.08620179,0.0001871,2]
[330703074,1719715899674,-1000.0,0.00018773,2]
[330703075,1719715899685,-305.34,0.000188,2]
[330703076,1719715899695,-16823.54767996,0.000188,2]
[330703077,1719715899705,-221.0,0.0001881,2]
[330703078,1719715899714,-204.0,0.0001881,2]
[330703079,1719715899724,-327.0,0.0001881,2]
[330703080,1719715899734,-150.0,0.0001884,2]
[330703081,1719715899745,-25072.10870496,0.00018865,2]
[330703082,1719715899756,-215.42,0.00018897,2]
[330703083,1719715899766,-162.45,0.000189,2]
[330703084,1719715899777,-170.23,0.00018929,2]
[330703085,1719715899787,-150.0,0.00018941,2]
[330703086,1719715899798,-150.0,0.0001895,2]
[330703087,1719715899808,-150.0,0.00018956,2]
[330703088,1719715899819,-152.0,0.00018973,8]
[330703089,1719715899829,-13555.21091272,0.00018986,2]
[330703090,1719715899839,-1000.0,0.00019,3]
[330703091,1719715899849,-1000.0,0.00019,3]
[330703092,1719715899859,-1000.0,0.00019,3]
[330703093,1719715899869,-7158.3236483,0.00019,2]
[330703094,1719715899879,-155.36335576,0.00019,2]
[330703095,1719715899889,-1598.93055594,0.00019,2]
[330703096,1719715899899,-197.8972728,0.00019,2]
[330703097,1719715899909,-865.09,0.00019041,2]
[330703098,1719715899920,-430.04,0.00019041,2]
[330703099,1719715899930,-716.21074661,0.00019091,2]
[330703100,1719715899940,-150.0,0.00019175,2]
[330703101,1719715899950,-500.0,0.00019178,2]
[330703102,1719715899960,-226.43551333,0.00019178,2]
[330703103,1719715899970,-500.0,0.00019178,2]
[330703104,1719715899979,-500.0,0.00019178,2]
[330703105,1719715899989,-216.30859971,0.00019178,2]
[330703106,1719715899999,-423.05438075,0.00019178,2]
[330703107,1719715900009,-500.0,0.00019178,2]
[330703108,1719715900018,-357.33608956,0.00019178,2]
[330703109,1719715900028,-500.0,0.00019178,2]
[330703110,1719715900038,-315.36134542,0.00019178,2]
[330703111,1719715900049,-500.0,0.00019178,2]
[330703112,1719715900064,-500.0,0.00019178,2]
[330703113,1719715900073,-500.0,0.00019178,2]
[330703114,1719715900083,-500.0,0.00019178,2]
[330703115,1719715900095,-500.0,0.00019178,2]
[330703116,1719715900106,-378.98014228,0.00019178,2]
[330703117,1719715900116,-500.0,0.00019178,2]
[330703118,1719715900130,-280.7046367,0.00019178,2]
[330703119,1719715900142,-500.0,0.00019178,2]
[330703120,1719715900153,-500.0,0.00019178,2]
[330703121,1719715900163,-500.0,0.00019178,2]
[330703122,1719715900173,-251.25324139,0.00019178,2]
[330703123,1719715900183,-398.59373111,0.00019178,2]
[330703124,1719715900193,-500.0,0.00019178,2]
[330703125,1719715900202,-500.0,0.00019178,2]
[330703126,1719715900212,-500.0,0.00019178,2]
[330703127,1719715900222,-500.0,0.00019178,2]
[330703128,1719715900233,-500.0,0.00019178,2]
[330703129,1719715900243,-500.0,0.00019178,2]
[330703130,1719715900253,-500.0,0.00019178,2]
[330703131,1719715900263,-450.360958,0.00019178,2]
[330703132,1719715900272,-450.360958,0.00019178,2]
[330703133,1719715900283,-450.360958,0.00019178,2]
[330703134,1719715900293,-450.360958,0.00019178,2]
[330703135,1719715900303,-450.360958,0.00019178,2]
[330703136,1719715900312,-450.360958,0.00019178,2]
[330703137,1719715900322,-450.360958,0.00019178,2]
[330703138,1719715900332,-450.360958,0.00019178,2]
[330703139,1719715900342,-450.360958,0.00019178,2]
[330703140,1719715900357,-450.360958,0.00019178,2]
[330703141,1719715900367,-450.360958,0.00019178,2]
[330703142,1719715900376,-450.360958,0.00019178,2]
[330703143,1719715900386,-450.360958,0.00019178,2]
[330703144,1719715900396,-450.360958,0.00019178,2]
[330703145,1719715900407,-450.360958,0.00019178,2]
[330703146,1719715900417,-450.360958,0.00019178,2]
[330703147,1719715900683,-450.360958,0.00019178,2]
[330703148,1719715900700,-450.360958,0.00019178,2]
[330703149,1719715900710,-450.360958,0.00019178,2]
[330703150,1719715900720,-450.360962,0.00019178,2]
[330703151,1719715900730,-150.0,0.00019178,2]
[330703152,1719715900739,-3586.26,0.00019178,2]
[330703153,1719715900748,-250.0,0.00019178,2]
[330703154,1719715900759,-151.0,0.00019178,2]
[330703155,1719715900768,-151.0,0.00019178,2]
[330703156,1719715900778,-151.0,0.00019178,2]
[330703157,1719715900789,-151.0,0.00019178,2]
[330703158,1719715900799,-151.0,0.00019178,2]
[330703159,1719715900808,-151.0,0.00019178,2]
[330703160,1719715900817,-151.0,0.00019178,2]
[330703161,1719715900827,-151.0,0.00019178,2]
[330703162,1719715900836,-151.0,0.00019178,2]
[330703163,1719715900846,-151.0,0.00019178,2]
[330703164,1719715900856,-151.0,0.00019178,2]
[330703165,1719715900865,-151.0,0.00019178,2]
[330703166,1719715900875,-151.0,0.00019178,2]
[330703167,1719715900884,-151.0,0.00019178,2]
[330703168,1719715900894,-154.97,0.0001918,2]
[330703169,1719715900904,-154.97,0.0001918,2]
[330703170,1719715900914,-150.0,0.00019238,2]
[330703171,1719715900923,-221.0,0.0001925,2]
[330703172,1719715900933,-204.0,0.0001925,2]
[330703173,1719715900942,-327.0,0.0001925,2]
[330703174,1719715900952,-152.0,0.00019262,9]
[330703175,1719715900962,-150.0,0.00019321,2]
[330703176,1719715900972,-150.0,0.00019328,2]
[330703177,1719715900982,-150.0,0.00019334,2]
[330703178,1719715900992,-365.78781787,0.0001935,2]
[330703179,1719715901001,-520.8,0.00019473,2]
[330703180,1719715901011,-214.0,0.0001954,2]
[330703181,1719715901020,-152.0,0.00019552,10]
[330703182,1719715901030,-25072.10870496,0.0001967,2]
[330703183,1719715901040,-2258.0,0.00019678,2]
[330703184,1719715901050,-150.0,0.00019683,2]
[330703185,1719715901065,-221.0,0.0001969,2]
[330703186,1719715901074,-204.0,0.0001969,2]
[330703187,1719715901084,-327.0,0.0001969,2]
[330703188,1719715901096,-769.75717818,0.000197,2]
[330703189,1719715901106,-150.0,0.00019702,2]
[330703190,1719715901116,-150.0,0.00019718,2]
[330703191,1719715901125,-500.0,0.00019726,2]
[330703192,1719715901138,-20000.0,0.00019736,2]
[330703193,1719715901148,-150.0,0.00019739,2]
[330703194,1719715901158,-179.85213788,0.00019789,2]
[330703195,1719715901167,-150.0,0.00019794,2]
[330703196,1719715901177,-150.0,0.00019816,2]
[330703197,1719715901187,-152.0,0.00019842,11]
[330703198,1719715901196,-150.0,0.00019843,2]
[330703199,1719715901206,-60073.01517285,0.000199,2]
[330703200,1719715901215,-214.0,0.000199,2]
[330703201,1719715901224,-13555.21091272,0.00019917,2]
[330703202,1719715901234,-150.0,0.00019949,2]
[330703203,1719715901242,-176.3287582,0.00019964,2]
[330703204,1719715901252,-700.0,0.0001997,2]
[330703205,1719715901262,-700.0,0.0001997,2]
[330703206,1719715901271,-400.58445871,0.0001997,2]
[330703207,1719715901280,-150.0,0.00019999,2]
[330703208,1719715901289,-447.98005647,0.0002,2]
[330703209,1719715901299,-155.0,0.0002,2]
[330703210,1719715901308,-327.07160495,0.0002,2]
[330703211,1719715901318,-6275.55847085,0.0002,2]
[330703212,1719715901328,-1274.88625925,0.0002,2]
[330703213,1719715901339,-1000.0,0.0002,4]
[330703214,1719715901351,-1000.0,0.0002,4]
[330703215,1719715901360,-1000.0,0.0002,4]
[330703216,1719715901370,-1000.0,0.0002,3]
[330703217,1719715901379,-1000.0,0.0002,3]
[330703218,1719715901388,-257.0,0.0002,2]
[330703219,1719715901398,-1016.0,0.0002,3]
[330703220,1719715901409,-191.0,0.0002,2]
[330703221,1719715901419,-50000.0,0.0002,5]
[330703222,1719715901428,-50000.0,0.0002,5]
[330703223,1719715901437,-14892.37,0.0002,5]
[330703224,1719715901447,-867.31049744,0.0002,2]
[330703225,1719715901456,-155.14339194,0.0002,2]
[330703226,1719715901465,-188.11303283,0.0002,2]
[330703227,1719715901475,-3134.0,0.0002,3]
[330703228,1719715901484,-3000.0,0.0002,2]
[330703229,1719715901494,-3000.0,0.0002,2]
[330703230,1719715901503,-3000.0,0.0002,2]
[330703231,1719715901512,-3000.0,0.0002,2]
[330703232,1719715901521,-3000.0,0.0002,2]
[330703233,1719715901531,-135360.19330133,0.0002,2]
[330703234,1719715901540,-3950.0,0.0002,2]
[330703235,1719715901549,-2576.35242985,0.0002,2]
[330703236,1719715901558,-515.0,0.0002,2]
[330703237,1719715901567,-76221.762816,0.0002,2]
[330703238,1719715901577,-157.20454747,0.0002,2]
[330703239,1719715901586,-150.0,0.0002,2]
[330703240,1719715901598,-490.0,0.0002,2]
[330703241,1719715901607,-191.0,0.0002,2]
[330703242,1719715901616,-5129.0,0.0002,2]
[330703243,1719715901625,-155.0,0.0002,2]
[330703244,1719715901635,-301.59379544,0.0002,2]
[330703245,1719715901644,-190.0,0.0002,2]
[330703246,1719715901654,-577.24725901,0.0002,7]
[330703247,1719715901663,-394.46650201,0.0002,2]
[330703248,1719715901672,-236.67990121,0.0002,2]
[330703249,1719715901682,-157.7866008,0.0002,2]
[330703250,1719715901691,-10774.8310644,0.0002,2]
[330703251,1719715901701,-305.34,0.0002,2]
[330703252,1719715901710,-665.85842183,0.0002,2]
[330703253,1719715901720,-2000.0,0.0002,2]
[330703254,1719715901729,-526.41196698,0.0002,2]
[330703255,1719715901739,-368.47514047,0.0002,2]
[330703256,1719715901748,-174.91292473,0.0002,2]
[330703257,1719715901758,-200.0,0.0002,2]
[330703258,1719715901768,-200.0,0.0002,2]
[330703259,1719715901777,-150.0,0.0002,2]
[330703260,1719715901787,-150.0,0.0002,2]
[330703261,1719715901796,-228.26075087,0.0002,2]
[330703262,1719715901807,-1445.8760955,0.0002,2]
[330703263,1719715901816,-270.71933622,0.0002,2]
[330703264,1719715901825,-150.0,0.0002,2]
[330703265,1719715901835,-150.0,0.0002,2]
[330703266,1719715901846,-150.0,0.0002,2]
[330703267,1719715901855,-150.0,0.0002,2]
[330703268,1719715901865,-57520.49506082,0.0002,2]
[330703269,1719715901874,-1002.16,0.0002,2]
[330703270,1719715901884,-1002.16,0.0002,2]
[330703271,1719715901893,-160.80043898,0.0002,2]
[330703272,1719715901905,-150.0,0.0002,2]
[330703273,1719715901915,-150.0,0.0002,2]
[330703274,1719715901924,-150.0,0.0002,2]
[330703275,1719715901934,-275.5,0.0002,2]
[330703276,1719715901943,-2000.0,0.0002001,2]
[330703277,1719715901953,-2000.0,0.0002002,2]
[330703278,1719715901963,-2000.0,0.0002003,2]
[330703279,1719715901972,-2539.928637,0.0002004,2]
[330703280,1719715901981,-400.0,0.0002007,2]
[330703281,1719715901992,-400.0,0.0002007,2]
[330703282,1719715902002,-700.0,0.0002007,2]
[330703283,1719715902012,-700.0,0.0002007,2]
[330703284,1719715902022,-7600.0,0.0002008,2]
[330703285,1719715902032,-1187.0,0.000201,8]
[330703286,1719715902042,-600.0,0.000201,2]
[330703287,1719715902058,-221.0,0.0002012,2]
[330703288,1719715902067,-204.0,0.0002012,2]
[330703289,1719715902077,-327.0,0.0002012,2]
[330703290,1719715902086,-152.0,0.00020131,12]
[330703291,1719715902099,-150.0,0.00020187,2]
[330703292,1719715902108,-2017.7706914,0.000202,2]
[330703293,1719715902118,-305.34,0.0002024,2]
[330703294,1719715902128,-526.41196698,0.00020263,2]
[330703295,1719715902140,-174.91292473,0.00020263,2]
[330703296,1719715902150,-228.26075087,0.00020263,2]
[330703297,1719715902160,-214.0,0.0002027,2]
[330703298,1719715902171,-500.0,0.00020414,2]
[330703299,1719715902181,-152.0,0.00020421,13]
[330703300,1719715902191,-500.0,0.00020423,2]
[330703301,1719715902200,-500.0,0.00020432,2]
[330703302,1719715902211,-500.0,0.0002044,2]
[330703303,1719715902220,-500.0,0.00020449,2]
[330703304,1719715902231,-500.0,0.00020458,2]
[330703305,1719715902241,-500.0,0.00020458,2]
[330703306,1719715902251,-2260.0,0.00020463,7]
[330703307,1719715902260,-500.0,0.00020467,2]
[330703308,1719715902269,-500.0,0.00020467,2]
[330703309,1719715902278,-25072.10870496,0.00020475,2]
[330703310,1719715902288,-500.0,0.00020476,2]
[330703311,1719715902297,-500.0,0.00020476,2]
[330703312,1719715902307,-500.0,0.00020476,2]
[330703313,1719715902316,-500.0,0.00020484,2]
[330703314,1719715902326,-500.0,0.00020484,2]
[330703315,1719715902336,-500.0,0.00020484,2]
[330703316,1719715902346,-500.0,0.00020493,2]
[330703317,1719715902356,-500.0,0.00020493,2]
[330703318,1719715902365,-500.0,0.00020493,2]
[330703319,1719715902376,-500.0,0.00020493,2]
[330703320,1719715902386,-500.0,0.000205,2]
[330703321,1719715902395,-1200.0,0.000205,2]
[330703322,1719715902405,-571.0,0.000205,2]
[330703323,1719715902414,-6985.93986544,0.000205,2]
[330703324,1719715902424,-200.0,0.000205,2]
[330703325,1719715902432,-5979.0,0.000205,2]
[330703326,1719715902442,-5000.0,0.000205,2]
[330703327,1719715902452,-2000.0,0.000205,2]
[330703328,1719715902462,-500.0,0.00020502,2]
[330703329,1719715902471,-500.0,0.00020502,2]
[330703330,1719715902480,-500.0,0.00020502,2]
[330703331,1719715902490,-500.0,0.00020502,2]
[330703332,1719715902501,-500.0,0.00020502,2]
[330703333,1719715902510,-500.0,0.00020502,2]
[330703334,1719715902520,-500.0,0.00020502,2]
[330703335,1719715902529,-526.41196698,0.00020525,2]
[330703336,1719715902539,-174.91292473,0.00020525,2]
[330703337,1719715902548,-228.26075087,0.00020525,2]
[330703338,1719715902557,-171.86,0.00020548,2]
[330703339,1719715902566,-421.651435,0.00020548,2]
[330703340,1719715902575,-421.651435,0.00020548,2]
[330703341,1719715902584,-421.651435,0.00020548,2]
[330703342,1719715902593,-421.651435,0.00020548,2]
[330703343,1719715902603,-421.651435,0.00020548,2]
[330703344,1719715902612,-421.651435,0.00020548,2]
[330703345,1719715902622,-421.651435,0.00020548,2]
[330703346,1719715902631,-421.651435,0.00020548,2]
[330703347,1719715902642,-421.651435,0.00020548,2]
[330703348,1719715902651,-421.651435,0.00020548,2]
[330703349,1719715902660,-421.651435,0.00020548,2]
[330703350,1719715902670,-421.651435,0.00020548,2]
[330703351,1719715902679,-421.651435,0.00020548,2]
[330703352,1719715902689,-421.651435,0.00020548,2]
[330703353,1719715902698,-421.651435,0.00020548,2]
[330703354,1719715902707,-421.651435,0.00020548,2]
[330703355,1719715902717,-421.651435,0.00020548,2]
[330703356,1719715902726,-421.651435,0.00020548,2]
[330703357,1719715902736,-421.651435,0.00020548,2]
[330703358,1719715902746,-421.651444,0.00020548,2]
[330703359,1719715902755,-221.0,0.0002056,2]
[330703360,1719715902764,-204.0,0.0002056,2]
[330703361,1719715902774,-327.0,0.0002056,2]
[330703362,1719715902783,-1187.0,0.000206,8]
[330703363,1719715902793,-214.0,0.0002064,2]
[330703364,1719715902803,-150.0,0.00020692,2]
[330703365,1719715902812,-150.0,0.00020703,2]
[330703366,1719715902822,-152.0,0.0002071,14]
[330703367,1719715902831,-204.23544018,0.00020722,2]
[330703368,1719715902841,-925.33014357,0.00020722,2]
[330703369,1719715902858,-852407.57913851,0.00020778,2]
[330703370,1719715902868,-526.41196698,0.00020788,2]
[330703371,1719715902878,-174.91292473,0.00020788,2]
[330703372,1719715902888,-228.26075087,0.00020788,2]
[330703373,1719715902897,-625936.72223,0.000208,2]
[330703374,1719715902906,-229.26003643,0.00020822,2]
[330703375,1719715902917,-13555.21091272,0.00020849,2]
[330703376,1719715902927,-400.0,0.0002097,2]
[330703377,1719715902936,-700.0,0.0002097,2]
[330703378,1719715902946,-152.0,0.00021,15]
[330703379,1719715902956,-164.88829301,0.00021,5]
[330703380,1719715902966,-523367.43988618,0.00021,7]
[330703381,1719715903042,-749.4523457,0.00021,2]
[330703382,1719715903052,-3422.22711694,0.00021,7]
[330703383,1719715903066,-155.0,0.00021,2]
[330703384,1719715903076,-515.0,0.00021,2]
[330703385,1719715903086,-257.0,0.00021,2]
[330703386,1719715903100,-1800.0,0.00021,22]
[330703387,1719715903111,-2000.0,0.00021,2]
[330703388,1719715903119,-1250.0,0.00021,2]
[330703389,1719715903129,-18299.62372939,0.00021,2]
[330703390,1719715903138,-2938.88541056,0.00021,2]
[330703391,1719715903152,-214.0,0.00021,2]
[330703392,1719715903162,-203.02303,0.00021,2]
[330703393,1719715903171,-221.0,0.00021,2]
[330703394,1719715903181,-204.0,0.00021,2]
[330703395,1719715903191,-327.0,0.00021,2]
[330703396,1719715903200,-275.5,0.00021,2]
[330703397,1719715903210,-150.0,0.0002104,2]
[330703398,1719715903219,-526.41196698,0.00021051,2]
[330703399,1719715903229,-174.91292473,0.00021051,2]
[330703400,1719715903239,-228.26075087,0.00021051,2]
[330703401,1719715903248,-50000.0,0.0002107,2]
[330703402,1719715903258,-150460.86137902,0.000211,2]
[330703403,1719715903612,-673.67079095,0.000211,2]
[330703404,1719715903624,-405.71908927,0.000211,2]
[330703405,1719715903637,-297.67288043,0.000211,2]
[330703406,1719715904144,-2613.3734669,0.00013598,2]
[330703407,1719715904156,-4886.6265331,0.00013598,2]
[330703408,1719715904166,-500.0,0.00013698,3]
[330703409,1719715904176,-500.0,0.00014246,3]
[330703410,1719715904185,-620.04,0.00014355,3]
[330703411,1719715904195,-500.0,0.00014356,3]
[330703412,1719715904205,-620.04,0.00014464,3]
[330703413,1719715904215,-500.0,0.00014465,3]
[330703414,1719715904225,-620.04,0.00014574,3]
[330703415,1719715904235,-500.0,0.00014575,3]
[330703416,1719715904245,-620.04,0.00014683,3]
[330703417,1719715904255,-500.0,0.00014684,3]
[330703418,1719715904264,-620.04,0.00014793,3]
[330703419,1719715904274,-500.0,0.00014794,3]
[330703420,1719715904284,-558.57,0.00014904,3]
[330703421,1719715904294,-432.46549202,0.00014904,3]
[330703422,1719715904303,-558.57,0.00015013,3]
[330703423,1719715904314,-558.57,0.00015123,3]
[330703424,1719715904324,-906.17,0.00015232,3]
[330703425,1719715904333,-558.57,0.00015232,3]
[330703426,1719715904343,-500.0,0.00015342,3]
[330703427,1719715904354,-906.17,0.00015342,3]
[330703428,1719715904363,-558.57,0.00015342,3]
[330703429,1719715904373,-500.0,0.00015452,3]
[330703430,1719715904383,-1106.72,0.00015452,3]